fUST/lending_fUST_20240919
["ID","MTS","AMOUNT","RATE_DAILY","PERIOD"]
[338557165,1726733440654,-2367.62088997,0.00018827,2]
[338557167,1726733440664,-597.7024118,0.00018827,2]
[338557169,1726733440673,-597.7024118,0.00018827,2]
[338557171,1726733440682,-597.7024118,0.00018827,2]
[338557173,1726733440691,-597.7024118,0.00018827,2]
[338557175,1726733440700,-597.7024118,0.00018827,2]
[338557177,1726733440709,-597.7024118,0.00018827,2]
[338557179,1726733440718,-597.7024118,0.00018827,2]
[338557181,1726733440727,-597.7024118,0.00018827,2]
[338557183,1726733440736,-597.7024118,0.00018827,2]
[338557185,1726733440745,-597.7024118,0.00018827,2]
[338557187,1726733440755,-597.7024118,0.00018827,2]
[338557189,1726733440765,-597.7024118,0.00018827,2]
[338557191,1726733440774,-597.7024118,0.00018827,2]
[338557193,1726733440785,-597.7024118,0.00018827,2]
[338557195,1726733440795,-597.7024118,0.00018827,2]
[338557197,1726733440804,-597.7024118,0.00018827,2]
[338557199,1726733440813,-5450.526703,0.00018827,2]
[338557201,1726733440822,-9293.38085749,0.00018827,5]
[338557203,1726733440832,-216563.532332,0.00018828,2]
[338557205,1726733440841,-169809.115231,0.00018828,3]
[338557207,1726733440851,-273.27631204,0.00018828,2]
[338557209,1726733440860,-561.68774791,0.00018828,2]
[338557211,1726733440869,-500.0,0.00018828,2]
[338557213,1726733440879,-500.0,0.00018828,2]
[338557215,1726733440888,-500.0,0.00018828,2]
[338557216,1726733440897,-500.0,0.00018828,2]
[338557218,1726733440907,-500.0,0.00018828,2]
[338557220,1726733440916,-500.0,0.00018828,2]
[338557222,1726733440926,-500.0,0.00018828,2]
[338557224,1726733440936,-500.0,0.00018828,2]
[338557226,1726733440946,-614.77146531,0.00018828,2]
[338557229,1726733440956,-500.0,0.00018828,2]
[338557230,1726733440967,-332.24147933,0.00018828,2]
[338557232,1726733440976,-500.0,0.00018828,2]
[338557234,1726733440986,-500.0,0.00018828,2]
[338557236,1726733440995,-500.0,0.00018828,2]
[338557238,1726733441005,-500.0,0.00018828,2]
[338557240,1726733441015,-500.0,0.00018828,2]
[338557242,1726733441025,-500.0,0.00018828,2]
[338557244,1726733441035,-500.0,0.00018828,2]
[338557247,1726733441045,-500.0,0.00018828,2]
[338557248,1726733441054,-500.0,0.00018828,2]
[338557250,1726733441064,-315.64177245,0.00018828,2]
[338557252,1726733441073,-500.0,0.00018828,2]
[338557254,1726733441082,-500.0,0.00018828,2]
[338557256,1726733441092,-500.0,0.00018828,2]
[338557258,1726733441102,-500.0,0.00018828,2]
[338557260,1726733441113,-550.0,0.00018828,2]
[338557262,1726733441122,-500.0,0.00018828,2]
[338557264,1726733441131,-500.0,0.00018828,2]
[338557265,1726733441141,-500.0,0.00018828,2]
[338557266,1726733441150,-500.0,0.00018828,2]
[338557267,1726733441159,-500.0,0.00018828,2]
[338557268,1726733441169,-217.5010813,0.00018828,2]
[338557270,1726733441179,-603.637482,0.00018828,2]
[338557272,1726733441189,-151.0,0.00018828,2]
[338557274,1726733441199,-151.0,0.00018828,2]
[338557275,1726733441208,-603.637482,0.00018828,2]
[338557278,1726733441219,-180.866474,0.00018828,2]
[338557280,1726733441228,-180.866474,0.00018828,2]
[338557282,1726733441237,-243.299066,0.00018828,2]
[338557283,1726733441247,-243.299066,0.00018828,2]
[338557285,1726733441257,-54140.883083,0.00018829,2]
[338557287,1726733441266,-42452.2788077,0.00018829,3]
[338557289,1726733441275,-603.637482,0.00018829,2]
[338557291,1726733441285,-151.0,0.00018829,2]
[338557293,1726733441295,-603.637482,0.00018829,2]
[338557295,1726733441305,-180.866474,0.00018829,2]
[338557297,1726733441314,-180.866474,0.00018829,2]
[338557299,1726733441324,-243.299066,0.00018829,2]
[338557302,1726733441335,-243.299066,0.00018829,2]
[338557304,1726733441345,-54140.883083,0.0001883,2]
[338557306,1726733441359,-56892.59490664,0.0001883,3]
[338557341,1726733441686,-70464.24151636,0.0001883,3]
[338557343,1726733441696,-603.637482,0.0001883,2]
[338557345,1726733441705,-151.0,0.0001883,2]
[338557347,1726733441715,-603.637482,0.0001883,2]
[338557349,1726733441724,-180.866474,0.0001883,2]
[338557350,1726733441734,-180.866474,0.0001883,2]
[338557353,1726733441744,-243.299066,0.0001883,2]
[338557354,1726733441754,-243.299066,0.0001883,2]
[338557357,1726733441764,-151.0,0.0001884,2]
[338557359,1726733441773,-151.0,0.0001884,2]
[338557360,1726733441782,-151.0,0.0001884,2]
[338557363,1726733441791,-151.0,0.0001884,2]
[338557365,1726733441802,-151.0,0.0001884,2]
[338557366,1726733441811,-151.0,0.0001884,2]
[338557368,1726733441820,-2763.559184,0.0001884,2]
[338557370,1726733441830,-481.839418,0.0001884,2]
[338557373,1726733441840,-481.839418,0.0001884,2]
[338557375,1726733441850,-481.839418,0.0001884,2]
[338557377,1726733441859,-481.839418,0.0001884,2]
[338557379,1726733441869,-151.0,0.0001884,2]
[338557381,1726733441878,-151.0,0.0001884,2]
[338557383,1726733441888,-151.0,0.0001884,2]
[338557385,1726733441897,-399.941666,0.0001884,2]
[338557387,1726733441906,-399.941666,0.0001884,2]
[338557389,1726733441915,-399.941666,0.0001884,2]
[338557391,1726733441924,-399.941666,0.0001884,2]
[338557393,1726733441934,-185.558402,0.0001884,2]
[338557395,1726733441943,-185.558402,0.0001884,2]
[338557397,1726733441953,-703.58847,0.0001884,2]
[338557399,1726733441963,-703.58847,0.0001884,2]
[338557401,1726733441974,-185.558402,0.0001884,2]
[338557403,1726733441983,-185.558402,0.0001884,2]
[338557405,1726733441993,-703.58847,0.0001884,2]
[338557407,1726733442003,-703.58847,0.0001884,2]
[338557409,1726733442013,-257.514696,0.0001884,2]
[338557411,1726733442023,-257.514696,0.0001884,2]
[338557413,1726733442033,-257.514696,0.0001884,2]
[338557415,1726733442044,-151.0,0.0001884,2]
[338557418,1726733442056,-257.514696,0.0001884,2]
[338557419,1726733442066,-151.0,0.0001884,2]
[338557420,1726733442078,-556.333141,0.0001884,2]
[338557422,1726733442088,-556.333141,0.0001884,2]
[338557424,1726733442098,-151.0,0.0001884,2]
[338557426,1726733442108,-229.603232,0.0001884,2]
[338557429,1726733442118,-556.333141,0.0001884,2]
[338557431,1726733442128,-556.333141,0.0001884,2]
[338557433,1726733442137,-209.007387,0.0001884,2]
[338557435,1726733442147,-209.007387,0.0001884,2]
[338557437,1726733442158,-151.0,0.0001884,2]
[338557439,1726733442168,-151.0,0.0001884,2]
[338557441,1726733442177,-209.007387,0.0001884,2]
[338557443,1726733442187,-209.007387,0.0001884,2]
[338557445,1726733442197,-151.0,0.0001884,2]
[338557447,1726733442206,-151.0,0.0001884,2]
[338557449,1726733442217,-151.0,0.0001884,2]
[338557451,1726733442226,-151.0,0.0001884,2]
[338557453,1726733442237,-278.712391,0.0001884,2]
[338557455,1726733442247,-151.0,0.0001884,2]
[338557457,1726733442257,-151.0,0.0001884,2]
[338557459,1726733442267,-151.0,0.0001884,2]
[338557462,1726733442278,-151.0,0.0001884,2]
[338557464,1726733442289,-151.0,0.0001884,2]
[338557466,1726733442299,-151.0,0.0001884,2]
[338557468,1726733442308,-151.0,0.0001884,2]
[338557470,1726733442317,-151.0,0.0001884,2]
[338557472,1726733442328,-151.0,0.0001884,2]
[338557474,1726733442338,-151.0,0.0001884,2]
[338557476,1726733442348,-151.0,0.0001884,2]
[338557478,1726733442361,-151.0,0.00018842,2]
[338557480,1726733442371,-151.0,0.00018842,2]
[338557482,1726733442381,-481.839418,0.00018842,2]
[338557484,1726733442390,-481.839418,0.00018842,2]
[338557486,1726733442402,-151.0,0.00018842,2]
[338557488,1726733442412,-399.941666,0.00018842,2]
[338557490,1726733442421,-399.941666,0.00018842,2]
[338557492,1726733442432,-185.558402,0.00018842,2]
[338557494,1726733442441,-703.58847,0.00018842,2]
[338557496,1726733442451,-185.558402,0.00018842,2]
[338557498,1726733442461,-703.58847,0.00018842,2]
[338557500,1726733442470,-257.514696,0.00018842,2]
[338557502,1726733442480,-257.514696,0.00018842,2]
[338557504,1726733442489,-151.0,0.00018842,2]
[338557506,1726733442499,-556.333141,0.00018842,2]
[338557508,1726733442508,-556.333141,0.00018842,2]
[338557510,1726733442518,-209.007387,0.00018842,2]
[338557512,1726733442527,-151.0,0.00018842,2]
[338557514,1726733442538,-209.007387,0.00018842,2]
[338557516,1726733442548,-151.0,0.00018842,2]
[338557518,1726733442558,-180.558168,0.00018842,2]
[338557520,1726733442567,-151.0,0.00018842,2]
[338557522,1726733442576,-174.099004,0.00018842,2]
[338557524,1726733442596,-198.030127,0.00018842,2]
[338557525,1726733442605,-151.0,0.0001885,2]
[338557527,1726733442614,-151.0,0.0001885,2]
[338557529,1726733442623,-151.0,0.0001885,2]
[338557531,1726733442633,-151.0,0.0001885,2]
[338557533,1726733442642,-151.0,0.00018852,2]
[338557535,1726733442653,-151.0,0.00018853,2]
[338557537,1726733442662,-151.0,0.00018853,2]
[338557540,1726733442671,-151.0,0.00018853,2]
[338557542,1726733442681,-151.0,0.00018853,2]
[338557544,1726733442691,-151.0,0.00018853,2]
[338557546,1726733442700,-151.0,0.00018853,2]
[338557548,1726733442710,-151.0,0.00018853,2]
[338557550,1726733442719,-151.0,0.00018853,2]
[338557552,1726733442729,-151.0,0.00018853,2]
[338557554,1726733442738,-151.0,0.00018853,2]
[338557556,1726733442748,-151.0,0.00018853,2]
[338557558,1726733442757,-185.852092,0.00018853,2]
[338557560,1726733442767,-151.0,0.00018853,2]
[338557562,1726733442776,-151.0,0.00018853,2]
[338557564,1726733442787,-151.0,0.00018853,2]
[338557565,1726733442796,-151.0,0.00018853,2]
[338557567,1726733442806,-151.0,0.00018853,2]
[338557569,1726733442815,-273.478842,0.00018853,2]
[338557572,1726733442825,-481.839418,0.00018853,2]
[338557574,1726733442834,-481.839418,0.00018853,2]
[338557576,1726733442844,-158.573226,0.00018853,2]
[338557578,1726733442854,-399.941666,0.00018853,2]
[338557580,1726733442865,-399.941666,0.00018853,2]
[338557582,1726733442874,-185.558402,0.00018853,2]
[338557585,1726733442883,-703.58847,0.00018853,2]
[338557588,1726733442893,-185.558402,0.00018853,2]
[338557590,1726733442902,-703.58847,0.00018853,2]
[338557592,1726733442912,-257.514696,0.00018853,2]
[338557594,1726733442921,-257.514696,0.00018853,2]
[338557596,1726733442931,-151.0,0.00018853,2]
[338557598,1726733442940,-556.333141,0.00018853,2]
[338557600,1726733442949,-556.333141,0.00018853,2]
[338557602,1726733442959,-209.007387,0.00018853,2]
[338557604,1726733442969,-151.0,0.00018853,2]
[338557606,1726733442978,-209.007387,0.00018853,2]
[338557608,1726733442987,-151.0,0.00018857,2]
[338557609,1726733442996,-151.0,0.00018857,2]
[338557611,1726733443006,-151.0,0.00018862,2]
[338557613,1726733443015,-8679.58413634,0.00018862,5]
[338557615,1726733443024,-59249.62975914,0.00018863,2]
[338557723,1726733443563,-457.087152,0.00018828,2]
[338557725,1726733443573,-457.087152,0.00018829,2]
[338557727,1726733443582,-457.087152,0.0001883,2]
[338557729,1726733443591,-493.20455993,0.00018863,2]
[338557733,1726733443613,-68843.55890311,0.00018863,2]
[338557735,1726733443623,-151.0,0.00018863,2]
[338557737,1726733443632,-151.0,0.00018863,2]
[338557739,1726733443641,-151.0,0.00018863,2]
[338557741,1726733443650,-151.0,0.00018863,2]
[338557769,1726733443885,-151.0,0.00018863,2]
[338557771,1726733443895,-185.556314,0.00018863,2]
[338557773,1726733443904,-151.0,0.00018863,2]
[338557775,1726733443914,-481.839418,0.00018863,2]
[338557777,1726733443924,-481.839418,0.00018863,2]
[338557779,1726733443934,-399.941666,0.00018863,2]
[338557781,1726733443943,-399.941666,0.00018863,2]
[338557783,1726733443953,-185.558402,0.00018863,2]
[338557785,1726733443962,-703.58847,0.00018863,2]
[338557787,1726733443971,-185.558402,0.00018863,2]
[338557789,1726733443980,-703.58847,0.00018863,2]
[338557791,1726733443990,-257.514696,0.00018863,2]
[338557793,1726733443999,-257.514696,0.00018863,2]
[338557795,1726733444009,-151.0,0.00018863,2]
[338557797,1726733444018,-556.333141,0.00018863,2]
[338557799,1726733444028,-556.333141,0.00018863,2]
[338557801,1726733444040,-209.007387,0.00018863,2]
[338557803,1726733444050,-151.0,0.00018863,2]
[338557805,1726733444060,-209.007387,0.00018863,2]
[338557807,1726733444069,-151.0,0.00018863,2]
[338557809,1726733444078,-151.0,0.00018863,2]
[338557811,1726733444087,-603.637482,0.00018863,2]
[338557813,1726733444096,-151.0,0.00018863,2]
[338557815,1726733444106,-603.637482,0.00018863,2]
[338557817,1726733444115,-180.866474,0.00018863,2]
[338557819,1726733444124,-180.866474,0.00018863,2]
[338557821,1726733444134,-243.299066,0.00018863,2]
[338557823,1726733444143,-243.299066,0.00018863,2]
[338557825,1726733444152,-457.087152,0.00018863,2]
[338557827,1726733444162,-501.15771748,0.00018873,2]
[338557829,1726733444171,-501.50815981,0.00018873,2]
[338557831,1726733444180,-500.88481706,0.00018873,2]
[338557833,1726733444189,-298.91044868,0.00018873,2]
[338557835,1726733444198,-500.0,0.00018873,2]
[338557836,1726733444207,-500.0,0.00018873,2]
[338557838,1726733444217,-500.0,0.00018873,2]
[338557840,1726733444228,-500.0,0.00018873,2]
[338557842,1726733444239,-500.0,0.00018873,2]
[338557844,1726733444249,-199.67272366,0.00018873,2]
[338557846,1726733444259,-500.0,0.00018873,2]
[338557848,1726733444268,-500.0,0.00018873,2]
[338557850,1726733444278,-639.11995649,0.00018873,2]
[338557852,1726733444290,-500.0,0.00018873,2]
[338557855,1726733444300,-500.0,0.00018873,2]
[338557857,1726733444310,-500.0,0.00018873,2]
[338557858,1726733444320,-204.68820788,0.00018873,2]
[338557860,1726733444329,-500.0,0.00018873,2]
[338557863,1726733444339,-500.0,0.00018873,2]
[338557865,1726733444350,-261.15767013,0.00018873,2]
[338557866,1726733444360,-500.0,0.00018873,2]
[338557869,1726733444371,-200.13184498,0.00018873,2]
[338557871,1726733444380,-500.0,0.00018873,2]
[338557872,1726733444391,-500.0,0.00018873,2]
[338557874,1726733444400,-150.0,0.0001889,2]
[338557876,1726733444410,-150.112233,0.000189,2]
[338557878,1726733444420,-150.112233,0.000189,2]
[338557880,1726733444432,-150.112233,0.000189,2]
[338557882,1726733444441,-150.112233,0.000189,2]
[338557884,1726733444451,-150.112233,0.000189,2]
[338557886,1726733444460,-150.112233,0.000189,2]
[338557888,1726733444470,-150.112233,0.000189,2]
[338557890,1726733444482,-450.0,0.000189,5]
[338557892,1726733444493,-350.0,0.000189,5]
[338557894,1726733444503,-154.8132801,0.00018907,2]
[338557896,1726733444514,-151.0,0.0001893,2]
[338557898,1726733444524,-151.0,0.0001893,2]
[338557900,1726733444536,-151.0,0.00018932,2]
[338557902,1726733444546,-481.839418,0.00018932,2]
[338557904,1726733444556,-481.839418,0.00018932,2]
[338557906,1726733444566,-399.941666,0.00018932,2]
[338557908,1726733444575,-399.941666,0.00018932,2]
[338557910,1726733444584,-185.558402,0.00018932,2]
[338557912,1726733444594,-703.58847,0.00018932,2]
[338557914,1726733444604,-185.558402,0.00018932,2]
[338557916,1726733444614,-703.58847,0.00018932,2]
[338557919,1726733444623,-257.514696,0.00018932,2]
[338557921,1726733444633,-257.514696,0.00018932,2]
[338557923,1726733444642,-151.0,0.00018932,2]
[338557925,1726733444652,-556.333141,0.00018932,2]
[338557927,1726733444662,-556.333141,0.00018932,2]
[338557929,1726733444674,-209.007387,0.00018932,2]
[338557931,1726733444683,-151.0,0.00018932,2]
[338557933,1726733444692,-209.007387,0.00018932,2]
[338557935,1726733444701,-151.0,0.0001894,2]
[338557937,1726733444710,-151.0,0.0001894,2]
[338557939,1726733444721,-281.982384,0.0001894,2]
[338557941,1726733444730,-151.0,0.0001894,2]
[338557943,1726733444739,-151.0,0.0001894,2]
[338557945,1726733444748,-166.79192,0.0001894,2]
[338557947,1726733444757,-151.0,0.0001894,2]
[338557949,1726733444767,-151.0,0.0001894,2]
[338557951,1726733444777,-151.0,0.00018952,2]
[338557953,1726733444789,-252.362047,0.00018952,2]
[338557955,1726733444798,-151.0,0.00018952,2]
[338557957,1726733444808,-172.129137,0.00018952,2]
[338557959,1726733444817,-151.752825,0.00018952,2]
[338557961,1726733444827,-172.129137,0.00018952,2]
[338557963,1726733444836,-151.0,0.00018955,2]
[338557965,1726733444846,-151.0,0.00018955,2]
[338557967,1726733444855,-172.129137,0.00018955,2]
[338557969,1726733444865,-172.129137,0.00018955,2]
[338557971,1726733444875,-500.0,0.00018973,2]
[338557973,1726733444884,-500.0,0.00018973,2]
[338557975,1726733444894,-511.51574799,0.00018973,2]
[338557977,1726733444903,-554.15919498,0.00018973,2]
[338557979,1726733444913,-500.34215095,0.00018973,2]
[338557981,1726733444922,-500.0,0.00018973,2]
[338557983,1726733444931,-500.0,0.00018973,2]
[338557985,1726733444941,-255.57892512,0.00018973,2]
[338557987,1726733444950,-500.0,0.00018973,2]
[338557988,1726733444959,-172.129137,0.0001899,2]
[338557990,1726733444968,-172.129137,0.0001899,2]
[338557993,1726733444978,-151.0,0.0001899,2]
[338557994,1726733444987,-271.943542,0.0001899,2]
[338557996,1726733444997,-245.77883,0.0001899,2]
[338557998,1726733445006,-151.0,0.0001899,2]
[338558000,1726733445016,-481.839418,0.0001899,2]
[338558002,1726733445025,-481.839418,0.0001899,2]
[338558005,1726733445039,-399.941666,0.0001899,2]
[338558007,1726733445048,-399.941666,0.0001899,2]
[338558009,1726733445057,-185.558402,0.0001899,2]
[338558011,1726733445067,-703.58847,0.0001899,2]
[338558012,1726733445076,-185.558402,0.0001899,2]
[338558014,1726733445085,-703.58847,0.0001899,2]
[338558016,1726733445095,-257.514696,0.0001899,2]
[338558018,1726733445104,-257.514696,0.0001899,2]
[338558020,1726733445114,-151.0,0.0001899,2]
[338558022,1726733445123,-556.333141,0.0001899,2]
[338558024,1726733445133,-556.333141,0.0001899,2]
[338558026,1726733445142,-209.007387,0.0001899,2]
[338558028,1726733445151,-151.0,0.0001899,2]
[338558030,1726733445161,-209.007387,0.0001899,2]
[338558032,1726733445171,-151.0,0.0001899,2]
[338558034,1726733445180,-151.0,0.0001899,2]
[338558036,1726733445190,-73918.42902591,0.00019,2]
[338558039,1726733445204,-22215.85270185,0.00019,2]
[338558041,1726733445213,-15650.07356942,0.00019,2]
[338558043,1726733445223,-1000.0,0.00019,19]
[338558045,1726733445232,-1000.0,0.00019,2]
[338558047,1726733445241,-172.129137,0.00019,2]
[338558049,1726733445250,-172.129137,0.00019,2]
[338558051,1726733445259,-151.0,0.00019,2]
[338558053,1726733445269,-281.044222,0.00019,2]
[338558055,1726733445278,-783.9896082,0.00019,2]
[338558057,1726733445300,-481.839418,0.00019,2]
[338558058,1726733445309,-481.839418,0.00019,2]
[338558059,1726733445318,-399.941666,0.00019,2]
[338558060,1726733445327,-399.941666,0.00019,2]
[338558061,1726733445336,-185.558402,0.00019,2]
[338558062,1726733445346,-703.58847,0.00019,2]
[338558063,1726733445359,-185.558402,0.00019,2]
[338558064,1726733445368,-703.58847,0.00019,2]
[338558065,1726733445378,-257.514696,0.00019,2]
[338558066,1726733445387,-151.0,0.00019,2]
[338558067,1726733445397,-257.514696,0.00019,2]
[338558068,1726733445406,-556.333141,0.00019,2]
[338558070,1726733445415,-556.333141,0.00019,2]
[338558072,1726733445426,-209.007387,0.00019,2]
[338558074,1726733445435,-151.0,0.00019,2]
[338558076,1726733445445,-209.007387,0.00019,2]
[338558078,1726733445454,-151.0,0.00019,2]
[338558080,1726733445463,-151.0,0.00019,2]
[338558082,1726733445473,-603.637482,0.00019,2]
[338558084,1726733445482,-603.637482,0.00019,2]
[338558086,1726733445491,-180.866474,0.00019,2]
[338558088,1726733445501,-180.866474,0.00019,2]
[338558090,1726733445511,-243.299066,0.00019,2]
[338558092,1726733445521,-243.299066,0.00019,2]
[338558094,1726733445532,-457.087152,0.00019,2]
[338558096,1726733445547,-45715.66108707,0.00019045,2]
[338558098,1726733445556,-172.129137,0.00019045,2]
[338558099,1726733445566,-172.129137,0.00019045,2]
[338558101,1726733445576,-151.0,0.00019178,2]
[338558103,1726733445586,-481.839418,0.00019178,2]
[338558106,1726733445596,-481.839418,0.00019178,2]
[338558107,1726733445605,-399.941666,0.00019178,2]
[338558110,1726733445616,-399.941666,0.00019178,2]
[338558112,1726733445626,-185.558402,0.00019178,2]
[338558113,1726733445636,-703.58847,0.00019178,2]
[338558115,1726733445645,-185.558402,0.00019178,2]
[338558117,1726733445655,-703.58847,0.00019178,2]
[338558119,1726733445665,-257.514696,0.00019178,2]
[338558122,1726733445675,-151.0,0.00019178,2]
[338558124,1726733445684,-257.514696,0.00019178,2]
[338558126,1726733445694,-556.333141,0.00019178,2]
[338558128,1726733445705,-556.333141,0.00019178,2]
[338558130,1726733445715,-209.007387,0.00019178,2]
[338558132,1726733445724,-151.0,0.00019178,2]
[338558134,1726733445734,-209.007387,0.00019178,2]
[338558136,1726733445744,-151.0,0.00019178,2]
[338558137,1726733445754,-151.0,0.00019178,2]
[338558139,1726733445764,-603.637482,0.00019178,2]
[338558142,1726733445774,-603.637482,0.00019178,2]
[338558143,1726733445783,-180.866474,0.00019178,2]
[338558145,1726733445793,-180.866474,0.00019178,2]
[338558147,1726733445802,-243.299066,0.00019178,2]
[338558149,1726733445812,-243.299066,0.00019178,2]
[338558151,1726733445821,-174.68393,0.00019178,2]
[338558153,1726733445831,-185.145807,0.00019178,2]
[338558155,1726733445840,-2705.342638,0.00019178,2]
[338558157,1726733445849,-153.0,0.00019178,2]
[338558159,1726733445859,-153.0,0.00019178,2]
[338558161,1726733445868,-153.0,0.00019178,2]
[338558163,1726733445877,-153.0,0.00019178,2]
[338558165,1726733445886,-153.0,0.00019178,2]
[338558167,1726733445896,-153.0,0.00019178,2]
[338558169,1726733445905,-153.0,0.00019178,2]
[338558171,1726733445915,-256.0,0.00019178,2]
[338558173,1726733445924,-256.0,0.00019178,2]
[338558175,1726733445934,-256.0,0.00019178,2]
[338558177,1726733445943,-256.0,0.00019178,2]
[338558179,1726733445953,-256.0,0.00019178,2]
[338558181,1726733445962,-256.0,0.00019178,2]
[338558183,1726733445972,-256.0,0.00019178,2]
[338558185,1726733445981,-256.0,0.00019178,2]
[338558187,1726733445990,-256.0,0.00019178,2]
[338558189,1726733446000,-256.0,0.00019178,2]
[338558191,1726733446009,-256.0,0.00019178,2]
[338558193,1726733446018,-256.0,0.00019178,2]
[338558195,1726733446027,-256.0,0.00019178,2]
[338558197,1726733446039,-153.0,0.00019178,2]
[338558199,1726733446048,-153.0,0.00019178,2]
[338558201,1726733446058,-153.0,0.00019178,2]
[338558203,1726733446067,-153.0,0.00019178,2]
[338558205,1726733446076,-153.0,0.00019178,2]
[338558207,1726733446085,-153.0,0.00019178,2]
[338558209,1726733446095,-153.0,0.00019178,2]
[338558211,1726733446104,-153.0,0.00019178,2]
[338558213,1726733446113,-153.0,0.00019178,2]
[338558215,1726733446122,-153.0,0.00019178,2]
[338558217,1726733446132,-256.0,0.00019178,2]
[338558219,1726733446141,-256.0,0.00019178,2]
[338558221,1726733446150,-256.0,0.00019178,2]
[338558223,1726733446159,-256.0,0.00019178,2]
[338558225,1726733446168,-256.0,0.00019178,2]
[338558226,1726733446177,-256.0,0.00019178,2]
[338558228,1726733446187,-256.0,0.00019178,2]
[338558230,1726733446195,-256.0,0.00019178,2]
[338558232,1726733446205,-256.0,0.00019178,2]
[338558234,1726733446214,-256.0,0.00019178,2]
[338558236,1726733446223,-256.0,0.00019178,2]
[338558238,1726733446232,-256.0,0.00019178,2]
[338558240,1726733446241,-256.0,0.00019178,2]
[338558242,1726733446251,-256.0,0.00019178,2]
[338558244,1726733446260,-787.06,0.000192,2]
[338558246,1726733446269,-150.112267,0.000194,2]
[338558247,1726733446278,-150.112233,0.000195,2]
[338558249,1726733446289,-783.9896082,0.000195,2]
[338558251,1726733446299,-1001.607931,0.000195,2]
[338558253,1726733446308,-172.129137,0.00019573,2]
[338558255,1726733446318,-172.129137,0.00019573,2]
[338558257,1726733446327,-1814.48733907,0.00019584,2]
[338558259,1726733446336,-150.112233,0.000196,2]
[338558261,1726733446346,-600.0,0.00019615,2]
[338558263,1726733446359,-150.112233,0.000197,2]
[338558265,1726733446369,-150.112233,0.000198,2]
[338558267,1726733446379,-2705.342638,0.00019863,2]
[338558269,1726733446388,-150.112233,0.000199,2]
[338558271,1726733446398,-150.112233,0.000199,2]
[338558273,1726733446408,-150.0,0.00019973,2]
[338558275,1726733446417,-189.0,0.0001998,2]
[338558277,1726733446428,-172.129137,0.0001999,2]
[338558279,1726733446437,-172.129137,0.0001999,2]
[338558281,1726733446447,-4920.61128918,0.00019999,2]
[338558283,1726733446456,-84728.89871023,0.0002,2]
[338558390,1726733447638,-500.0,0.00018827,2]
[338558391,1726733447648,-246.61866976,0.00018827,2]
[338558392,1726733447702,-253.38133024,0.00018827,2]
[338558393,1726733447711,-438.92778967,0.00018827,2]
[338558394,1726733447720,-265.01433649,0.00018827,2]
[338558395,1726733447729,-457.087152,0.00018828,2]
[338558396,1726733447738,-457.087152,0.00018829,2]
[338558398,1726733447747,-457.087152,0.0001883,2]
[338558399,1726733447756,-457.087152,0.00018863,2]
[338558400,1726733447765,-457.087152,0.00019178,2]
[338558402,1726733447774,-83881.81901214,0.0002,2]
[338558408,1726733447819,-500.0,0.00018827,2]
[338558410,1726733447829,-7763.38700347,0.0002,2]
[338560054,1726734335149,-285.24975707,0.00015646,2]
[338560055,1726734355117,-619.87919423,0.00015646,2]